fUST/lending_fUST_20251004
["ID","MTS","AMOUNT","RATE_DAILY","PERIOD"]
[388946440,1759533032375,-355.96542209,0.00025201,2]
[388946442,1759533032384,-500.0,0.00025201,2]
[388946444,1759533032394,-500.0,0.00025201,2]
[388946446,1759533032405,-187.97052032,0.00025201,2]
[388946448,1759533032414,-500.0,0.00025201,2]
[388946450,1759533032423,-1200.0,0.00025201,2]
[388946452,1759533032432,-1072.98588114,0.00025202,2]
[388946454,1759533032442,-50000.0,0.00025202,2]
[388946456,1759533032451,-1121.89120068,0.00025205,2]
[388946458,1759533032461,-1000.0,0.00025256,2]
[388946460,1759533032470,-2109.02,0.00026989,2]
[388946462,1759533032479,-5016.89943108,0.00027212,30]
[388946464,1759533032489,-2100.0,0.00028375,7]
[388946465,1759533032498,-180.11,0.00028802,21]
[388946466,1759533032509,-275.34144031,0.00028983,2]
[388946467,1759533032518,-196.97,0.00029077,2]
[388946468,1759533032528,-168.0,0.00029126,2]
[388946469,1759533032537,-980.0,0.00029177,2]
[388946470,1759533032547,-630.0,0.00029177,2]
[388946471,1759533032557,-2157.0,0.00029177,2]
[388946472,1759533032566,-410.0,0.00029177,2]
[388946473,1759533032575,-2109.02,0.00029181,4]
[388946474,1759533032585,-154.629674,0.000292,26]
[388946475,1759533032595,-154.629674,0.0002925,25]
[388946476,1759533032604,-554.4,0.00029404,15]
[388946478,1759533032613,-3308.2017353,0.00029421,2]
[388946480,1759533032623,-1146.0,0.00029478,13]
[388946482,1759533032632,-273.47430465,0.00029591,2]
[388946484,1759533032642,-198.0744093,0.00029591,2]
[388946486,1759533032651,-5025.0,0.00029592,2]
[388946488,1759533032660,-154.629674,0.00029625,25]
[388946490,1759533032670,-513.0,0.00029742,3]
[388946492,1759533032679,-61714.3917366,0.00029762,2]
[388946495,1759533032707,-658.920495,0.00029762,2]
[388946594,1759533037914,-1041.66666667,0.00024897,2]
[388946597,1759533037924,-462.0,0.00029734,15]
[388946599,1759533037934,-31498.35737274,0.00029762,2]
[388946605,1759533037984,-86926.25578282,0.00029762,2]
[388946686,1759533043577,-431.05,0.00029734,15]
[388946687,1759533043587,-7952.7209336,0.00029762,2]
[388946696,1759533046225,-652.02000004,0.00029734,15]
[388946828,1759534232602,-6431.70200724,0.0002,2]
[388946830,1759534232611,-157.0,0.00023589,10]
[388946832,1759534232620,-1200.0,0.00026574,2]
[388946833,1759534232629,-300.0,0.00027998,2]
[388946835,1759534232638,-300.0,0.00027998,2]
[388946837,1759534232648,-300.0,0.00027998,2]
[388946839,1759534232656,-300.0,0.00027998,2]
[388946843,1759534232666,-300.0,0.00027998,2]
[388946845,1759534232675,-274.25687453,0.00028,14]
[388946848,1759534232685,-180.637134,0.00028181,2]
[388946850,1759534232695,-2100.0,0.000285,7]
[388946852,1759534232704,-2692.28150653,0.0002876,5]
[388947003,1759534238289,-1307.71849347,0.0002876,5]
[388947005,1759534238300,-206.50608024,0.00028869,2]
[388947007,1759534238310,-765.0,0.00029,15]
[388947009,1759534238320,-10184.0,0.0002907,60]
[388947011,1759534238329,-177.01977004,0.000295,120]
[388947013,1759534238339,-637.45,0.00029532,10]
[388947014,1759534238348,-995.28,0.00029532,10]
[388947016,1759534238357,-10886.69822232,0.00029542,2]
[388947274,1759534246574,-253.1698311,0.00029541,2]
[388947275,1759534246584,-243.10783559,0.00029541,2]
[388947276,1759534246593,-156482.98541664,0.00029542,2]
[388947277,1759534246603,-350.68179118,0.00029562,2]
[388947278,1759534246613,-1041.66666667,0.00029574,2]
[388947279,1759534246622,-302.8183302,0.00029585,24]
[388947280,1759534246631,-1200.0,0.00029603,2]
[388947281,1759534246641,-938.0,0.00029609,2]
[388947282,1759534246650,-630.0,0.00029609,2]
[388947283,1759534246659,-2157.0,0.00029609,2]
[388947284,1759534246669,-410.0,0.00029609,2]
[388947285,1759534246678,-58955.43185619,0.00029642,2]
[388947302,1759534584182,292.538863,0.00016438,2]
[388947304,1759534853663,5494.66521667,0.00018,2]
[388947306,1759535026269,1000.0,0.00026,60]
[388947331,1759535432586,-292.538863,0.00022783,2]
[388947333,1759535432595,-988.0,0.00025,2]
[388947335,1759535432606,-1000.0,0.00026,30]
[388947337,1759535432615,-210.09244384,0.00027,5]
[388947339,1759535432627,-400.37755616,0.00027,5]
[388947341,1759535432636,-27.2866335,0.00027,30]
[388947343,1759535432646,-1265.7133665,0.00027,30]
[388947345,1759535432656,-1200.0,0.00027999,2]
[388947347,1759535432665,-2000.0,0.00028,7]
[388947349,1759535432673,-300.0,0.00028766,2]
[388947351,1759535432682,-500.0,0.00028767,2]
[388947353,1759535432691,-500.0,0.00028767,10]
[388947357,1759535432700,-500.0,0.00028767,15]
[388947361,1759535432709,-162.5876315,0.00029068,30]
[388947365,1759535432718,-319.5920289,0.00029068,30]
[388947369,1759535432727,-153.0,0.00029068,30]
[388947372,1759535432736,-1174.7421118,0.00029068,30]
[388947374,1759535432745,-153.0239982,0.00029068,30]
[388947376,1759535432754,-382.4561056,0.00029068,30]
[388947378,1759535432766,-297.3661479,0.00029068,30]
[388947381,1759535432782,-1221.5876703,0.00029068,30]
[388947384,1759535432797,-153.0,0.00029068,30]
[388947386,1759535432809,-162.5876315,0.00029068,30]
[388947388,1759535432823,-314.7386013,0.00029068,30]
[388947391,1759535432836,-292.538863,0.00029128,2]
[388947393,1759535432852,-935.57825255,0.0002913,5]
[388947396,1759535432866,-177.21888177,0.00029299,2]
[388947398,1759535432881,-84564.2077075,0.000293,5]
[388947401,1759535432896,-829.4,0.00029441,10]
[388947403,1759535432909,-1137.06,0.00029449,15]
[388947406,1759535432922,-164.705666,0.00029464,2]
[388947408,1759535432934,-1041.66666667,0.00029471,2]
[388947411,1759535432948,-168.0,0.00029507,2]
[388947413,1759535432961,-40732.2607743,0.00029527,2]
[388947415,1759535432972,-4823.19616015,0.00029532,2]
[388947456,1759535438375,-691.16,0.00029431,10]
[388947459,1759535438385,-1041.66666667,0.00029461,2]
[388947461,1759535438394,-2395.30296064,0.00029532,2]
[388947467,1759535438445,-1122.08658436,0.00029532,2]
[388947469,1759535438456,-4076.36039599,0.00029532,2]
[388947472,1759535438467,-20362.90750781,0.00029532,2]
[388947474,1759535438478,-6014.1617539,0.00029532,2]
[388947476,1759535438489,-1039.21679114,0.00029532,2]
[388947542,1759535440548,-18217.4587284,0.00029532,2]
[388947818,1759535443660,-950.0,0.00029532,2]
[388947820,1759535443672,-806.06153892,0.00029532,2]
[388948602,1759535508584,10000.0,0.00028767,120]
[388948619,1759536632785,-4020.13212374,0.00023718,2]
[388948620,1759536632795,-1041.66666667,0.00024904,2]
[388948621,1759536632804,-1200.0,0.00026848,2]
[388948622,1759536632814,-200.0,0.00027896,15]
[388948623,1759536632823,-300.0,0.00028677,2]
[388948624,1759536632832,-162.5876315,0.00028678,30]
[388948625,1759536632841,-297.0711174,0.00028678,30]
[388948626,1759536632850,-153.0,0.00028678,30]
[388948627,1759536632860,-297.3661479,0.00028678,30]
[388948628,1759536632869,-162.5876315,0.00028678,30]
[388948629,1759536632878,-297.3661479,0.00028678,30]
[388948630,1759536632887,-331.8865957,0.00028678,30]
[388948631,1759536632897,-162.5876315,0.00028678,30]
[388948632,1759536632906,-162.5876315,0.00028678,30]
[388948633,1759536632916,-297.3661479,0.00028678,30]
[388948634,1759536632927,-162.5876315,0.00028678,30]
[388948635,1759536632936,-162.5876315,0.00028778,30]
[388948636,1759536632946,-297.3661479,0.00028778,30]
[388948637,1759536632955,-153.0,0.00028778,30]
[388948639,1759536632964,-162.2303469,0.00029068,30]
[388948641,1759536632974,-162.5876315,0.00029068,30]
[388948643,1759536632984,-162.5876315,0.00029068,30]
[388948644,1759536632993,-162.5876315,0.00029068,30]
[388948646,1759536633005,-496.44597838,0.00029069,10]
[388948649,1759536633014,-2546.89079827,0.00029242,30]
[388948650,1759536633026,-571.50389657,0.00029242,30]
[388948651,1759536633053,-1881.60530516,0.00029242,30]
[388948652,1759536633062,-1056.13077248,0.00029342,2]
[388948653,1759536633071,-233.78786078,0.00029342,2]
[388948654,1759536633081,-1179.99310266,0.00029342,2]
[388948655,1759536633090,-1056.13077248,0.00029345,2]
[388948656,1759536633099,-1056.13077248,0.00029347,2]
[388948657,1759536633108,-1056.13077248,0.0002935,2]
[388948658,1759536633117,-1056.13077248,0.00029352,2]
[388948659,1759536633127,-575.97,0.00029423,10]
[388948660,1759536633136,-479.97,0.00029423,10]
[388948661,1759536633145,-250.0,0.00029425,2]
[388948662,1759536633155,-250.0,0.00029425,2]
[388948663,1759536633164,-250.0,0.00029425,2]
[388948664,1759536633173,-250.0,0.00029425,2]
[388948665,1759536633182,-356.14903448,0.00029431,2]
[388948666,1759536633191,-561.47570925,0.00029431,2]
[388948667,1759536633200,-391.62648322,0.00029431,2]
[388948668,1759536633209,-180.11064905,0.00029432,23]
[388948669,1759536633219,-1933.27,0.00029432,2]
[388948670,1759536633228,-20761.94914947,0.00029432,2]
[388948952,1759536638894,-399.98,0.00029423,10]
[388948953,1759536638904,-11825.02,0.00029432,2]
[388952088,1759537267208,3000.0,0.00028767,120]
[388952089,1759537462447,160.0,0.00013699,2]
[388952090,1759537462795,260.0,0.00014247,2]
[388952091,1759537463127,360.0,0.00014795,2]
[388952092,1759537463520,460.0,0.00015342,2]
[388952093,1759537470567,151.0,0.00028767,120]
[388952095,1759537536818,224.47,0.00028767,120]
[388952098,1759537603431,248.658033,0.00016438,2]
[388952104,1759537715909,935.71774389,0.0002,120]
[388952190,1759537832202,-5000.0,0.00022329,2]
[388952192,1759537832211,-248.658033,0.00022783,2]
[388952194,1759537832220,-1236.7675991,0.0002414,2]
[388952196,1759537832229,-293.47406221,0.00024278,2]
[388952197,1759537832238,-159.26129273,0.000248,2]
[388952199,1759537832247,-159.26129272,0.0002482,2]
[388952201,1759537832256,-1041.66666667,0.00024902,2]
[388952203,1759537832265,-1200.0,0.00024904,2]
[388952205,1759537832274,-415.78,0.00024953,2]
[388952207,1759537832283,-300.0,0.00025999,2]
[388952209,1759537832292,-300.0,0.00025999,2]
[388952210,1759537832301,-1669.274776,0.00026,30]
[388952212,1759537832310,-11307.74161351,0.00026066,2]
[388952213,1759537832319,-1032.49396488,0.00026079,2]
[388952214,1759537832328,-180.637135,0.00026145,2]
[388952216,1759537832338,-186.30611146,0.00026177,2]
[388952217,1759537832348,-193.6818092,0.00026177,2]
[388952218,1759537832358,-1200.0,0.00026178,2]
[388952219,1759537832367,-50000.0,0.00026178,2]
[388952220,1759537832376,-500.0,0.00026178,2]
[388952221,1759537832385,-387.48643147,0.00026179,2]
[388952222,1759537832395,-500.0,0.00026452,2]
[388952223,1759537832404,-754.64,0.0002659,10]
[388952224,1759537832413,-628.86,0.0002659,10]
[388952225,1759537832422,-500.0,0.000266,2]
[388952226,1759537832431,-524.05,0.0002662,10]
[388952227,1759537832440,-1299.2915761,0.0002663,2]
[388952228,1759537832449,-500.0,0.00026726,2]
[388952229,1759537832458,-500.12793847,0.000268,2]
[388952230,1759537832467,-500.0,0.000268,2]
[388952231,1759537832476,-500.0,0.000268,2]
[388952232,1759537832485,-500.0,0.000268,2]
[388952233,1759537832496,-501.83730841,0.000268,2]
[388952234,1759537832505,-510.08652149,0.000268,2]
[388952235,1759537832514,-4093.22437054,0.0002699,2]
[388952236,1759537832530,-10092.96,0.0002699,2]
[388952238,1759537837757,-500.0,0.00026176,2]
[388952239,1759537837767,-500.0,0.00026176,2]
[388952240,1759537837778,-500.0,0.00026176,2]
[388952241,1759537837788,-500.0,0.00026176,2]
[388952242,1759537837798,-500.0,0.00026176,2]
[388952243,1759537837808,-500.0,0.00026176,2]
[388952244,1759537837818,-500.0,0.00026176,2]
[388952245,1759537837828,-500.0,0.00026176,2]
[388952246,1759537837838,-500.0,0.00026176,2]
[388952247,1759537837851,-500.0,0.00026176,2]
[388952248,1759537837861,-500.0,0.00026176,2]
[388952249,1759537837871,-500.0,0.00026176,2]
[388952250,1759537837880,-500.0,0.00026176,2]
[388952251,1759537837890,-500.0,0.00026176,2]
[388952252,1759537837900,-500.0,0.00026176,2]
[388952253,1759537837910,-167.83125516,0.00026176,2]
[388952254,1759537837918,-500.0,0.00026176,2]
[388952255,1759537837928,-500.0,0.00026176,2]
[388952256,1759537837937,-500.0,0.00026176,2]
[388952257,1759537837947,-500.0,0.00026176,2]
[388952258,1759537837957,-500.0,0.00026176,2]
[388952259,1759537837966,-500.0,0.00026176,2]
[388952260,1759537837976,-436.71,0.0002679,10]
[388952261,1759537837986,-85813.81562946,0.0002699,2]
[388952262,1759537837996,-231.8744016,0.00026991,2]
[388952263,1759537838005,-500.0,0.00027,2]
[388952264,1759537838015,-1032.49396482,0.00027053,2]
[388952265,1759537838025,-1680.0,0.00027104,2]
[388952266,1759537838035,-500.0,0.00027148,2]
[388952267,1759537838044,-500.0,0.00027274,2]
[388952268,1759537838054,-800.0,0.00027346,2]
[388952269,1759537838064,-800.0,0.00027353,2]
[388952270,1759537838074,-500.0,0.00027397,9]
[388952271,1759537838085,-500.0,0.00027397,9]
[388952272,1759537838095,-500.0,0.00027397,9]
[388952273,1759537838106,-485.07550743,0.00027397,9]
[388952274,1759537838116,-500.0,0.00027397,9]
[388952275,1759537838126,-500.0,0.00027397,9]
[388952276,1759537838136,-500.0,0.00027397,9]
[388952277,1759537838146,-228.62424831,0.00027397,9]
[388952278,1759537838157,-500.0,0.00027397,9]
[388952279,1759537838167,-448.14403461,0.00027397,9]
[388952280,1759537838176,-922.77,0.00027397,9]
[388952281,1759537838186,-500.0,0.00027397,9]
[388952283,1759537838197,-500.0,0.00027397,9]
[388952284,1759537838207,-500.0,0.00027397,9]
[388952285,1759537838216,-1358.88,0.00027397,9]
[388952286,1759537838226,-500.0,0.00027397,9]
[388952287,1759537838236,-2198.89,0.00027397,9]
[388952288,1759537838246,-500.0,0.00027397,9]
[388952289,1759537838256,-500.0,0.00027397,9]
[388952290,1759537838266,-2045.76,0.00027397,9]
[388952291,1759537838276,-500.0,0.00027397,9]
[388952292,1759537838286,-1353.96,0.00027397,9]
[388952293,1759537838296,-500.0,0.00027397,9]
[388952294,1759537838305,-998.09,0.00027397,9]
[388952295,1759537838316,-500.0,0.00027397,9]
[388952296,1759537838326,-500.0,0.00027397,9]
[388952297,1759537838336,-500.0,0.00027397,9]
[388952298,1759537838345,-201.14630718,0.00027397,9]
[388952300,1759537838356,-151.0,0.00027397,7]
[388952301,1759537838366,-1519.753714,0.00027397,7]
[388952302,1759537838376,-500.0,0.00027397,9]
[388952303,1759537838386,-1519.753714,0.00027397,7]
[388952305,1759537838396,-1519.753714,0.00027397,7]
[388952306,1759537838406,-500.0,0.00027397,9]
[388952308,1759537838416,-580.795172,0.00027397,7]
[388952310,1759537838426,-1519.753714,0.00027397,7]
[388952311,1759537838436,-500.0,0.00027548,2]
[388952312,1759537838446,-500.0,0.00027671,9]
[388952313,1759537838455,-495.67225306,0.00027671,9]
[388952314,1759537838466,-500.0,0.00027671,9]
[388952315,1759537838475,-500.0,0.00027671,9]
[388952316,1759537838486,-398.48648864,0.00027671,9]
[388952317,1759537838495,-500.0,0.00027671,9]
[388952318,1759537838505,-500.0,0.00027671,9]
[388952319,1759537838515,-448.14403461,0.00027671,9]
[388952320,1759537838525,-922.77,0.00027671,9]
[388952321,1759537838535,-500.0,0.00027671,9]
[388952322,1759537838544,-500.0,0.00027671,9]
[388952323,1759537838554,-500.0,0.00027671,9]
[388952324,1759537838564,-1358.88,0.00027671,9]
[388952325,1759537838573,-151.0,0.00027671,7]
[388952326,1759537838583,-151.0,0.00027671,7]
[388952327,1759537838595,-151.0,0.00027671,7]
[388952328,1759537838606,-287.439152,0.00027671,7]
[388952329,1759537838616,-287.439152,0.00027671,7]
[388952330,1759537838626,-287.439152,0.00027671,7]
[388952331,1759537838636,-287.439152,0.00027671,7]
[388952332,1759537838646,-500.0,0.00027671,9]
[388952333,1759537838656,-2198.89,0.00027671,9]
[388952334,1759537838665,-402.06173546,0.00027671,9]
[388952335,1759537838675,-500.0,0.00027671,9]
[388952336,1759537838685,-2045.76,0.00027671,9]
[388952337,1759537838694,-500.0,0.00027671,9]
[388952338,1759537838704,-1353.96,0.00027671,9]
[388952339,1759537838713,-151.26758,0.00027671,7]
[388952340,1759537838722,-584.208031,0.00027671,7]
[388952341,1759537838732,-584.208031,0.00027671,7]
[388952342,1759537838742,-500.0,0.00027671,9]
[388952343,1759537838752,-584.208031,0.00027671,7]
[388952344,1759537838762,-584.208031,0.00027671,7]
[388952345,1759537838771,-998.09,0.00027671,9]
[388952346,1759537838781,-500.0,0.00027671,9]
[388952347,1759537838791,-500.0,0.00027671,9]
[388952348,1759537838801,-594.28266231,0.00027671,9]
[388952349,1759537838811,-500.0,0.00027671,9]
[388952350,1759537838821,-500.0,0.00027671,9]
[388952351,1759537838830,-151.0,0.00027696,7]
[388952352,1759537838839,-151.0,0.00027696,7]
[388952353,1759537838849,-151.0,0.00027696,7]
[388952354,1759537838859,-232.757623,0.00027696,7]
[388952355,1759537838869,-232.757623,0.00027696,7]
[388952356,1759537838880,-232.757623,0.00027696,7]
[388952357,1759537838890,-232.757623,0.00027696,7]
[388952358,1759537838900,-151.0,0.00027696,7]
[388952359,1759537838927,-151.0,0.00027696,7]
[388952360,1759537838937,-151.0,0.00027696,7]
[388952361,1759537838947,-151.0,0.00027696,7]
[388952362,1759537838957,-151.0,0.00027696,7]
[388952363,1759537838967,-151.0,0.00027696,7]
[388952364,1759537838976,-151.0,0.00027696,7]
[388952365,1759537838986,-151.0,0.00027696,7]
[388952366,1759537838996,-151.0,0.00027696,7]
[388952367,1759537839005,-659.21834,0.00027696,7]
[388952368,1759537839016,-659.21834,0.00027696,7]
[388952369,1759537839025,-659.21834,0.00027696,7]
[388952370,1759537839035,-659.21834,0.00027696,7]
[388952371,1759537839044,-151.0,0.00027696,7]
[388952372,1759537839054,-151.0,0.00027696,7]
[388952373,1759537839063,-151.0,0.00027696,7]
[388952374,1759537839072,-151.0,0.00027696,7]
[388952375,1759537839081,-151.0,0.00027696,7]
[388952376,1759537839091,-253.89,0.00027696,7]
[388952377,1759537839101,-151.0,0.00027696,7]
[388952378,1759537839111,-151.0,0.00027696,7]
[388952379,1759537839121,-1519.753714,0.00027696,7]
[388952380,1759537839131,-1519.753714,0.00027696,7]
[388952381,1759537839140,-1519.753714,0.00027696,7]
[388952382,1759537839150,-580.795172,0.00027696,7]
[388952383,1759537839160,-1519.753714,0.00027696,7]
[388952384,1759537839169,-160.0,0.000277,2]
[388952385,1759537839336,-162.5876315,0.00027856,30]
[388952386,1759537839347,-800.0,0.00027873,2]
[388952387,1759537839357,-258236.02294193,0.0002788,2]
[388952389,1759537839366,-6582.95973363,0.0002789,2]
[388952391,1759537839376,-500.0,0.00027945,9]
[388952392,1759537839389,-500.0,0.00027945,9]
[388952393,1759537839399,-500.0,0.00027945,9]
[388952394,1759537839409,-500.0,0.00027945,9]
[388952395,1759537839419,-500.0,0.00027945,9]
[388952396,1759537839430,-500.0,0.00027945,9]
[388952398,1759537839440,-922.77,0.00027945,9]
[388952400,1759537839450,-500.0,0.00027945,9]
[388952401,1759537839461,-500.0,0.00027945,9]
[388952402,1759537839470,-500.0,0.00027945,9]
[388952403,1759537839480,-1358.88,0.00027945,9]
[388952404,1759537839489,-500.0,0.00027945,9]
[388952405,1759537839499,-2198.89,0.00027945,9]
[388952406,1759537839509,-317.07621219,0.00027945,9]
[388952407,1759537839519,-479.68313303,0.00027945,9]
[388952408,1759537839529,-2045.76,0.00027945,9]
[388952409,1759537839538,-1353.96,0.00027945,9]
[388952410,1759537839547,-500.0,0.00027945,9]
[388952411,1759537839562,-998.09,0.00027945,9]
[388952412,1759537839573,-500.0,0.00027945,9]
[388952413,1759537839583,-500.0,0.00027945,9]
[388952414,1759537839593,-1519.753714,0.00027945,7]
[388952415,1759537839603,-446.70672536,0.00027945,9]
[388952416,1759537839613,-1519.753714,0.00027945,7]
[388952417,1759537839623,-1519.753714,0.00027945,7]
[388952418,1759537839633,-580.795172,0.00027945,7]
[388952419,1759537839643,-500.0,0.00027945,9]
[388952420,1759537839653,-1519.753714,0.00027945,7]
[388952421,1759537839663,-151.0,0.0002798,7]
[388952422,1759537839673,-151.0,0.0002798,7]
[388952423,1759537839683,-151.0,0.0002798,7]
[388952424,1759537839694,-287.439152,0.0002798,7]
[388952425,1759537839703,-287.439152,0.0002798,7]
[388952426,1759537839713,-287.439152,0.0002798,7]
[388952427,1759537839723,-287.439152,0.0002798,7]
[388952428,1759537839732,-584.208031,0.0002798,7]
[388952429,1759537839742,-584.208031,0.0002798,7]
[388952430,1759537839752,-584.208031,0.0002798,7]
[388952431,1759537839761,-584.208031,0.0002798,7]
[388952432,1759537839771,-1519.753714,0.0002798,7]
[388952433,1759537839781,-1519.753714,0.0002798,7]
[388952434,1759537839790,-1519.753714,0.0002798,7]
[388952435,1759537839800,-580.795172,0.0002798,7]
[388952436,1759537839810,-47389.1503118,0.0002798,2]
[388952437,1759537839820,-151.0,0.0002799,7]
[388952438,1759537839829,-151.0,0.0002799,7]
[388952439,1759537839839,-151.0,0.0002799,7]
[388952440,1759537839849,-151.0,0.0002799,7]
[388952441,1759537839859,-206.658237,0.0002799,7]
[388952442,1759537839869,-151.0,0.0002799,7]
[388952443,1759537839879,-206.658237,0.0002799,7]
[388952444,1759537839888,-206.658237,0.0002799,7]
[388952445,1759537839897,-206.658237,0.0002799,7]
[388952446,1759537839907,-211.164226,0.0002799,7]
[388952447,1759537839916,-167.180106,0.0002799,7]
[388952448,1759537839926,-167.180106,0.0002799,7]
[388952449,1759537839935,-167.180106,0.0002799,7]
[388952450,1759537839944,-167.180106,0.0002799,7]
[388952451,1759537839954,-151.0,0.0002799,7]
[388952452,1759537839963,-151.0,0.0002799,7]
[388952453,1759537839973,-151.0,0.0002799,7]
[388952454,1759537839983,-151.0,0.0002799,7]
[388952455,1759537839992,-151.0,0.0002799,7]
[388952456,1759537840002,-232.757623,0.0002799,7]
[388952457,1759537840011,-232.757623,0.0002799,7]
[388952458,1759537840022,-232.757623,0.0002799,7]
[388952459,1759537840032,-232.757623,0.0002799,7]
[388952460,1759537840042,-161.71996,0.0002799,7]
[388952461,1759537840051,-151.0,0.0002799,7]
[388952462,1759537840061,-151.0,0.0002799,7]
[388952463,1759537840071,-151.0,0.0002799,7]
[388952464,1759537840081,-151.0,0.0002799,7]
[388952465,1759537840090,-227.605274,0.0002799,7]
[388952466,1759537840099,-151.0,0.0002799,7]
[388952467,1759537840109,-151.0,0.0002799,7]
[388952468,1759537840118,-659.21834,0.0002799,7]
[388952469,1759537840127,-659.21834,0.0002799,7]
[388952470,1759537840137,-659.21834,0.0002799,7]
[388952471,1759537840147,-659.21834,0.0002799,7]
[388952472,1759537840156,-151.0,0.0002799,7]
[388952473,1759537840166,-151.0,0.0002799,7]
[388952474,1759537840175,-1041.66666667,0.0002799,7]
[388952475,1759537840185,-151.0,0.0002799,7]
[388952476,1759537840194,-151.0,0.0002799,7]
[388952477,1759537840204,-151.0,0.0002799,7]
[388952478,1759537840213,-151.0,0.0002799,7]
[388952479,1759537840223,-151.0,0.0002799,7]
[388952480,1759537840232,-151.0,0.0002799,7]
[388952481,1759537840241,-151.0,0.0002799,7]
[388952482,1759537840251,-264.077731,0.0002799,7]
[388952483,1759537840260,-287.439152,0.0002799,7]
[388952484,1759537840271,-287.439152,0.0002799,7]
[388952485,1759537840280,-287.439152,0.0002799,7]
[388952486,1759537840289,-287.439152,0.0002799,7]
[388952487,1759537840299,-584.208031,0.0002799,7]
[388952488,1759537840308,-584.208031,0.0002799,7]
[388952489,1759537840317,-584.208031,0.0002799,7]
[388952490,1759537840326,-584.208031,0.0002799,7]
[388952491,1759537840335,-1519.753714,0.0002799,7]
[388952492,1759537840345,-1519.753714,0.0002799,7]
[388952493,1759537840356,-1519.753714,0.0002799,7]
[388952494,1759537840366,-1496.01,0.00028,2]
[388952495,1759537840375,-1032.49396482,0.00028028,2]
[388952496,1759537840384,-206.0,0.00028086,7]
[388952497,1759537840394,-6582.95973359,0.00028115,2]
[388952498,1759537840403,-300.0,0.00028137,2]
[388952499,1759537840413,-506.54036504,0.00028144,2]
[388952500,1759537840423,-168.0,0.00028159,2]
[388952501,1759537840433,-624.5775559,0.00028219,9]
[388952502,1759537840442,-500.0,0.00028219,9]
[388952503,1759537840452,-500.0,0.00028219,9]
[388952504,1759537840461,-500.0,0.00028219,9]
[388952505,1759537840471,-211.56024667,0.00028219,9]
[388952506,1759537840480,-500.0,0.00028219,9]
[388952507,1759537840490,-922.77,0.00028219,9]
[388952508,1759537840499,-481.62214385,0.00028219,9]
[388952509,1759537840508,-500.0,0.00028219,9]
[388952510,1759537840518,-500.0,0.00028219,9]
[388952511,1759537840527,-1358.88,0.00028219,9]
[388952512,1759537840537,-151.0,0.00028219,7]
[388952513,1759537840548,-287.439152,0.00028219,7]
[388952514,1759537840557,-287.439152,0.00028219,7]
[388952515,1759537840567,-287.439152,0.00028219,7]
[388952516,1759537840576,-287.439152,0.00028219,7]
[388952517,1759537840586,-500.0,0.00028219,9]
[388952518,1759537840597,-2198.89,0.00028219,9]
[388952519,1759537840609,-2045.76,0.00028219,9]
[388952520,1759537840624,-1353.96,0.00028219,9]
[388952522,1759537840638,-584.208031,0.00028219,7]
[388952523,1759537840648,-584.208031,0.00028219,7]
[388952524,1759537840658,-500.0,0.00028219,9]
[388952525,1759537840667,-584.208031,0.00028219,7]
[388952526,1759537840676,-584.208031,0.00028219,7]
[388952527,1759537840686,-998.09,0.00028219,9]
[388952528,1759537840695,-500.0,0.00028219,9]
[388952529,1759537840704,-500.0,0.00028219,9]
[388952530,1759537840714,-260.0,0.00028248,2]
[388952531,1759537840723,-206.0,0.00028303,2]